bitfinex/quotes_BTCUSD_20240815
["timestamp","ask_amount","ask_price","bid_price","bid_amount"]
[1723763977171,0.0754,57713.0,57711.0,0.1741791]
[1723763977370,0.0784,57713.0,57711.0,0.1741791]
[1723763978232,0.003,57713.0,57712.0,0.173274]
[1723763978805,0.004,57713.0,57712.0,0.34482854]
[1723763978981,0.004,57713.0,57712.0,0.69137654]
[1723763979182,0.000821,57714.0,57713.0,0.173271]
[1723763980028,0.000821,57714.0,57713.0,0.519813]
[1723763980790,0.004821,57714.0,57713.0,0.519813]
[1723763981412,0.006821,57714.0,57713.0,0.519813]
[1723763985504,0.006821,57714.0,57713.0,0.173271]
[1723763988693,0.006821,57714.0,57711.0,0.3474521]
[1723763988694,0.173273,57713.0,57711.0,0.0009031]
[1723763989181,0.22500122,57713.0,57711.0,0.0009031]
[1723763989987,0.6366258,57712.0,57711.0,0.0009031]
[1723763990178,1.78032038,57712.0,57711.0,0.0009031]
[1723763990413,1.73796394,57712.0,57711.0,1e-08]
[1723763990652,1.86725406,57712.0,57711.0,1e-08]
[1723763990931,1.86825406,57712.0,57711.0,1e-08]
[1723763991170,2.0388086,57712.0,57711.0,1e-08]
[1723763991653,2.0478086,57712.0,57711.0,0.00100001]
[1723763992851,1.74696394,57712.0,57711.0,0.00100001]
[1723763993322,1.75296394,57712.0,57711.0,0.00100001]
[1723763993504,1.85634593,57712.0,57711.0,0.00100001]
[1723763995044,1.75296394,57712.0,57711.0,0.00100001]
[1723763995260,1.75396394,57712.0,57711.0,0.00100001]
[1723763995461,2.65312102,57712.0,57711.0,0.00100001]
[1723763995638,2.65317556,57712.0,57711.0,0.00100001]
[1723763995840,2.80817884,57712.0,57711.0,0.00100001]
[1723763996051,2.88049343,57712.0,57711.0,0.00100001]
[1723763996240,2.80817884,57712.0,57711.0,0.00100001]
[1723763996453,2.0735763,57712.0,57711.0,0.00100001]
[1723763996671,1.91057302,57712.0,57711.0,1e-08]
[1723763996872,1.92357302,57712.0,57711.0,1e-08]
[1723763997080,1.93757302,57712.0,57711.0,1e-08]
[1723763998006,1.93957302,57712.0,57711.0,1e-08]
[1723763998482,2.0945763,57712.0,57711.0,1e-08]
[1723763998755,1.93957302,57712.0,57711.0,1e-08]
[1723764000383,2.64217556,57712.0,57711.0,1e-08]
[1723764000533,2.82017884,57712.0,57711.0,1e-08]
[1723764000748,2.82017884,57712.0,57710.0,0.00086311]
[1723764000749,1.213939,57711.0,57710.0,0.00086311]
[1723764000949,2.02485401,57711.0,57710.0,0.00086311]
[1723764001148,1.59723948,57711.0,57710.0,0.00086311]
[1723764001718,1.94679348,57711.0,57710.0,0.00086311]
[1723764001925,2.04499348,57711.0,57710.0,0.00086311]
[1723764002202,2.20005347,57711.0,57710.0,0.00086311]
[1723764002515,1.69543948,57711.0,57710.0,0.00086311]
[1723764002663,1.25068548,57711.0,57710.0,0.00086311]
[1723764003087,1.39389868,57711.0,57710.0,0.00086311]
[1723764003284,1.27668548,57711.0,57710.0,0.00086311]
[1723764003637,1.27666486,57711.0,57710.0,0.00086311]
[1723764005479,1.27666486,57711.0,57705.0,0.0827]
[1723764005480,0.173291,57707.0,57705.0,0.0827]
[1723764005683,0.57158818,57706.0,57705.0,0.0827]
[1723764005889,0.519876,57706.0,57705.0,0.0827]
[1723764006095,0.57158793,57706.0,57705.0,0.0827]
[1723764006448,0.519876,57706.0,57705.0,0.0827]
[1723764006652,0.173292,57706.0,57704.0,0.0009031]
[1723764006854,0.05171232,57705.0,57704.0,0.0009031]
[1723764007624,0.21027857,57705.0,57704.0,0.0009031]
[1723764007827,0.71901237,57705.0,57704.0,0.0009031]
[1723764008031,1.06560237,57705.0,57704.0,0.0009031]
[1723764008231,1.06560911,57705.0,57704.0,0.0009031]
[1723764008587,0.98450911,57705.0,57704.0,0.0009031]
[1723764009214,0.98950911,57705.0,57704.0,0.0009031]
[1723764009487,0.99750911,57705.0,57704.0,0.0009031]
[1723764009693,2.10760405,57705.0,57704.0,0.0009031]
[1723764009900,2.00331234,57705.0,57704.0,0.0009031]
[1723764010101,2.84157493,57705.0,57704.0,0.0009031]
[1723764010274,3.0815094,57705.0,57704.0,0.0009031]
[1723764010505,3.0775094,57705.0,57704.0,0.0009031]
[1723764010678,3.00812947,57705.0,57704.0,0.0009031]
[1723764010906,3.15526194,57705.0,57704.0,0.0009031]
[1723764011219,0.173331,57693.0,57692.0,0.0009053]
[1723764012086,0.173328,57694.0,57692.0,0.0009053]
[1723764012303,0.173319,57697.0,57693.0,0.1443]
[1723764012508,0.173319,57697.0,57694.0,0.173327]
[1723764012738,0.22503058,57697.0,57694.0,0.173327]
[1723764013525,0.23303058,57697.0,57694.0,0.173327]
[1723764013730,0.22503058,57697.0,57694.0,0.173327]
[1723764014134,0.23303058,57697.0,57694.0,0.173327]
[1723764014711,0.23903058,57697.0,57694.0,0.173327]
[1723764015517,0.06571158,57697.0,57694.0,0.173327]
[1723764015723,0.014,57697.0,57694.0,0.173327]
[1723764015977,0.014,57697.0,57693.0,0.1443]
[1723764015978,0.014,57697.0,57695.0,0.173324]
[1723764016186,0.014,57697.0,57696.0,0.312622]
[1723764016393,0.014,57697.0,57696.0,0.659266]
[1723764016976,0.05171158,57701.0,57697.0,0.0761]
[1723764017178,0.4681,57703.0,57699.0,0.0761]
[1723764017381,0.4681,57703.0,57700.0,0.0814]
[1723764018220,0.011,57701.0,57700.0,0.0814]
[1723764018863,0.011,57701.0,57700.0,0.25295454]
[1723764019072,0.011,57701.0,57700.0,0.31305454]
[1723764019514,0.000821,57711.0,57700.0,0.17155454]
[1723764019690,0.000821,57711.0,57702.0,0.062]
[1723764019691,0.013,57703.0,57702.0,0.062]
[1723764019890,0.013,57703.0,57702.0,0.31085454]
[1723764020292,0.000821,57711.0,57710.0,0.8664]
[1723764020499,0.000821,57711.0,57710.0,1.18565454]
[1723764020719,0.008821,57711.0,57710.0,1.18565454]
[1723764021085,0.000821,57711.0,57710.0,1.53221454]
[1723764022893,0.002821,57711.0,57710.0,1.53221454]
[1723764023762,0.010821,57711.0,57710.0,2.32533454]
[1723764023909,0.002821,57711.0,57710.0,1.97877454]
[1723764024351,0.003821,57711.0,57710.0,1.97877454]
[1723764024549,0.000821,57711.0,57710.0,1.97877454]
[1723764026067,0.000821,57711.0,57710.0,1.98988882]
[1723764026446,0.002821,57711.0,57710.0,1.98888882]
[1723764026638,0.001821,57711.0,57710.0,1.98888882]
[1723764026851,0.000821,57711.0,57710.0,1.98888882]
[1723764027048,0.001821,57711.0,57710.0,1.98888882]
[1723764027294,0.002821,57711.0,57710.0,1.99488882]
[1723764027641,0.002821,57711.0,57710.0,1.98477454]
[1723764032709,0.002821,57711.0,57710.0,1.63821454]
[1723764032923,0.002821,57711.0,57710.0,1.53821454]
[1723764032924,0.00261245,57711.0,57710.0,1.53821454]
[1723764033771,0.00261245,57711.0,57710.0,1.19165454]
[1723764033977,0.17588945,57711.0,57710.0,0.006]
[1723764034235,0.52244345,57711.0,57710.0,0.006]
[1723764034420,0.35638829,57711.0,57704.0,0.173297]
[1723764034627,0.173296,57705.0,57701.0,0.0638]
[1723764034823,0.173289,57707.0,57702.0,0.17155454]
[1723764035034,0.173289,57707.0,57703.0,0.1733]
[1723764035174,0.173296,57705.0,57702.0,0.17155454]
[1723764035387,0.346579,57707.0,57702.0,0.17155454]
[1723764035388,0.00809086,57704.0,57702.0,0.34485754]
[1723764035585,0.173293,57706.0,57702.0,0.34485754]
[1723764035787,0.00809434,57705.0,57702.0,0.34485754]
[1723764035986,0.00913701,57705.0,57702.0,0.34485754]
[1723764036218,0.00913701,57705.0,57703.0,0.173299]
[1723764036808,0.003,57704.0,57703.0,0.173299]
[1723764037327,0.01513701,57705.0,57703.0,0.173299]
[1723764037611,0.02513701,57705.0,57703.0,0.168299]
[1723764037818,0.01313701,57705.0,57703.0,0.168299]
[1723764038020,0.004,57704.0,57703.0,0.168299]
[1723764038383,0.004,57704.0,57702.0,0.17155454]
[1723764038583,0.01313701,57705.0,57702.0,0.17155454]
[1723764038788,0.00913701,57705.0,57702.0,0.34485654]
[1723764039316,0.003,57704.0,57703.0,0.173301]
[1723764039668,0.00812121,57704.0,57703.0,0.173301]
[1723764040592,0.01212121,57704.0,57703.0,0.173301]
[1723764040793,0.01512121,57704.0,57703.0,0.173301]
[1723764043877,0.01512121,57704.0,57702.0,0.34485754]
[1723764044863,0.0300669,57704.0,57700.0,0.0009031]
[1723764045069,0.519921,57701.0,57700.0,0.0009031]
[1723764045295,0.930635,57701.0,57700.0,0.0009031]
[1723764045448,0.93162187,57701.0,57700.0,0.0009031]
[1723764045650,1.1548689,57701.0,57700.0,1e-08]
[1723764046268,0.98331436,57701.0,57700.0,1e-08]
[1723764046470,1.41782836,57701.0,57700.0,1e-08]
[1723764046671,1.43967461,57701.0,57700.0,1e-08]
[1723764046871,1.44777957,57701.0,57700.0,1e-08]
[1723764047272,1.45177957,57701.0,57700.0,1e-08]
[1723764047473,1.62333411,57701.0,57700.0,1e-08]
[1723764047674,1.62433411,57701.0,57700.0,1e-08]
[1723764047881,1.45077957,57701.0,57700.0,1e-08]
[1723764048089,0.53301283,57701.0,57700.0,1e-08]
[1723764048290,0.54701283,57701.0,57700.0,1e-08]
[1723764048675,0.54301283,57701.0,57700.0,1e-08]
[1723764049143,0.03709183,57701.0,57700.0,1e-08]
[1723764049456,0.03709183,57701.0,57700.0,0.25061001]
[1723764049457,0.02309183,57701.0,57700.0,0.25061001]
[1723764049699,0.02309183,57701.0,57700.0,1e-08]
[1723764049899,0.03709183,57701.0,57700.0,1e-08]
[1723764050184,0.03709183,57701.0,57700.0,0.17331001]
[1723764050384,0.02309183,57701.0,57700.0,0.17331001]
[1723764050592,0.02209183,57701.0,57700.0,0.17331001]
[1723764050794,0.03609183,57701.0,57700.0,0.17331001]
[1723764051141,0.07769011,57701.0,57700.0,0.51993001]
[1723764051463,0.03609183,57701.0,57700.0,0.17331001]
[1723764051878,0.02309183,57701.0,57700.0,0.17331001]
[1723764052070,0.00909183,57701.0,57700.0,0.17331001]
[1723764052233,0.01909183,57701.0,57700.0,0.17331001]
[1723764052617,0.03009183,57701.0,57700.0,0.17331001]
[1723764055194,0.60501161,57701.0,57700.0,1e-08]
[1723764055529,1.03052561,57701.0,57700.0,1e-08]
[1723764056371,0.97552683,57701.0,57700.0,1e-08]
[1723764056569,1.03882683,57701.0,57700.0,1e-08]
[1723764058293,0.55001283,57701.0,57700.0,1e-08]
[1723764058496,0.20339883,57701.0,57700.0,0.07800001]
[1723764058693,0.55001283,57701.0,57700.0,0.07800001]
[1723764059299,0.55001283,57701.0,57700.0,1e-08]
[1723764061493,0.20339883,57701.0,57700.0,1e-08]
[1723764061695,0.20522812,57701.0,57700.0,1e-08]
[1723764062007,0.89662683,57701.0,57700.0,1e-08]
[1723764062207,0.5500218,57701.0,57700.0,1e-08]
[1723764063277,0.8966358,57701.0,57700.0,1e-08]
[1723764063472,0.64160619,57701.0,57700.0,1e-08]
[1723764064101,0.55186041,57701.0,57700.0,1e-08]
[1723764065107,0.55004184,57701.0,57700.0,1e-08]
[1723764065826,0.89665584,57701.0,57700.0,1e-08]
[1723764066108,0.55181193,57701.0,57700.0,1e-08]
[1723764066703,0.55096736,57701.0,57700.0,1e-08]
[1723764066915,0.57783748,57701.0,57700.0,1e-08]
[1723764068117,0.92445148,57701.0,57700.0,1e-08]
[1723764068311,0.55096736,57701.0,57700.0,1e-08]
[1723764069431,1.24419536,57701.0,57700.0,1e-08]
[1723764069666,0.95848136,57701.0,57700.0,1e-08]
[1723764069800,0.519993,57693.0,57692.0,0.0009053]
[1723764070001,0.597893,57693.0,57692.0,0.0009053]
[1723764070201,0.95241689,57693.0,57692.0,0.0009053]
[1723764070641,0.60575489,57693.0,57692.0,0.0009053]
[1723764070970,0.52785489,57693.0,57692.0,0.0009053]
[1723764071347,0.52785489,57693.0,57692.0,0.1459053]
[1723764071523,0.52985489,57693.0,57692.0,0.1459053]
[1723764071877,0.52985489,57693.0,57692.0,0.0628053]
[1723764072088,0.52985489,57693.0,57692.0,0.0009053]
[1723764072302,1.45032938,57693.0,57692.0,0.0009053]
[1723764072720,1.52780551,57693.0,57692.0,0.0009053]
[1723764072880,1.45032938,57693.0,57692.0,0.0009053]
[1723764073060,1.44932938,57693.0,57692.0,0.0009053]
[1723764073267,2.11558561,57693.0,57692.0,0.0009053]
[1723764073466,2.13858561,57693.0,57692.0,0.0009053]
[1723764073733,2.10771487,57693.0,57692.0,0.0009053]
[1723764073887,2.10071487,57693.0,57692.0,0.0009053]
[1723764074097,2.09874593,57693.0,57692.0,0.0009053]
[1723764074298,1.90319139,57693.0,57692.0,0.0009053]
[1723764074564,1.37531407,57693.0,57692.0,0.0009053]
[1723764074739,1.36231407,57693.0,57692.0,0.0009053]
[1723764074897,1.37531407,57693.0,57692.0,0.0009053]
[1723764075100,1.38631407,57693.0,57692.0,0.0009053]
[1723764075486,1.54775832,57693.0,57692.0,0.0009053]
[1723764075700,1.58759831,57693.0,57692.0,0.0009053]
[1723764076197,1.45672164,57693.0,57692.0,0.0009053]
[1723764076350,1.57492757,57693.0,57692.0,0.0009053]
[1723764076934,1.79338364,57693.0,57692.0,0.0009053]
[1723764077110,1.53682164,57693.0,57692.0,0.0009053]
[1723764077313,1.45972164,57693.0,57692.0,0.0009053]
[1723764078492,1.80638364,57693.0,57692.0,0.0009053]
[1723764078707,1.80636245,57693.0,57692.0,0.0009053]
[1723764078904,1.45970045,57693.0,57692.0,0.0009053]
[1723764080106,1.80636245,57693.0,57692.0,0.0009053]
[1723764080304,2.04461699,57693.0,57692.0,0.0009053]
[1723764080507,0.520083,57683.0,57682.0,0.1434]
[1723764080708,0.866805,57683.0,57682.0,0.1434]
[1723764080966,0.95339783,57683.0,57682.0,0.1434]
[1723764081169,1.36369229,57683.0,57682.0,0.1434]
[1723764081372,0.95335027,57683.0,57682.0,0.1434]
[1723764081521,1.07194885,57683.0,57682.0,0.1434]
[1723764081729,0.95935027,57683.0,57682.0,0.1434]
[1723764081933,0.88585332,57683.0,57682.0,0.1434]
[1723764082345,0.88585332,57683.0,57676.0,0.009031]
[1723764082346,0.173373,57679.0,57676.0,0.009031]
[1723764082576,0.866865,57679.0,57676.0,0.009031]
[1723764083464,0.520119,57679.0,57676.0,0.009031]
[1723764083660,0.62122248,57679.0,57676.0,0.009031]
[1723764083903,0.62222248,57679.0,57676.0,0.009031]
[1723764084338,0.62122248,57679.0,57676.0,0.009031]
[1723764084612,0.2842878,57679.0,57676.0,0.009031]
[1723764084869,0.18318432,57679.0,57676.0,0.009031]
[1723764085089,0.18418432,57679.0,57676.0,0.009031]
[1723764085463,0.01081132,57679.0,57676.0,0.182411]
[1723764085665,0.01081132,57679.0,57678.0,0.086431]
[1723764085828,0.01081132,57679.0,57678.0,0.148231]
[1723764087335,0.00881132,57679.0,57678.0,0.148231]
[1723764087859,0.06898757,57679.0,57678.0,0.148231]
[1723764088458,0.06798757,57679.0,57678.0,0.148231]
[1723764088661,0.06898757,57679.0,57678.0,0.148231]
[1723764088870,0.24236057,57679.0,57678.0,0.148231]
[1723764089069,0.58910657,57679.0,57678.0,0.009031]
[1723764089274,0.53093032,57679.0,57678.0,0.009031]
[1723764089477,1.96600013,57679.0,57678.0,0.009031]
[1723764089822,1.96600013,57679.0,57671.0,0.0002]
[1723764089823,0.520182,57672.0,57671.0,0.0002]
[1723764090028,1.213758,57672.0,57671.0,0.0002]
[1723764090177,1.38531254,57672.0,57671.0,0.0002]
[1723764090378,1.43692418,57672.0,57671.0,0.0002]
[1723764090713,1.05084031,57672.0,57671.0,0.0002]
[1723764090918,1.12827476,57672.0,57671.0,0.0002]
[1723764091289,1.05084031,57672.0,57671.0,0.0002]
[1723764091895,1.06484031,57672.0,57671.0,0.0002]
[1723764092111,1.06484031,57672.0,57671.0,0.0767]
[1723764092112,0.02631577,57672.0,57671.0,0.0767]
[1723764092475,0.19970977,57672.0,57671.0,0.0767]
[1723764092695,0.21370977,57672.0,57671.0,0.0767]
[1723764093215,0.02631577,57672.0,57671.0,0.0767]
[1723764093672,0.03931577,57672.0,57671.0,0.0767]
[1723764093877,0.21270977,57672.0,57671.0,0.0767]
[1723764094078,0.63612385,57672.0,57671.0,0.0002]
[1723764094278,0.98291185,57672.0,57671.0,0.0002]
[1723764094483,1.32969985,57672.0,57671.0,0.0002]
[1723764094894,1.34369985,57672.0,57671.0,0.0002]
[1723764095094,1.34369985,57672.0,57671.0,0.001022]
[1723764097672,0.03931577,57672.0,57671.0,0.139922]
[1723764099745,0.03931577,57672.0,57671.0,0.313319]
[1723764100005,0.03931577,57672.0,57671.0,0.139922]
[1723764101150,0.21270977,57672.0,57671.0,0.139922]
[1723764101557,0.30333555,57672.0,57671.0,0.139922]
[1723764101900,0.30333555,57672.0,57671.0,0.001022]
[1723764101901,0.99691155,57672.0,57671.0,0.001022]
[1723764102558,1.34369955,57672.0,57671.0,0.001022]
[1723764104531,1.34369955,57672.0,57671.0,1e-08]
[1723764104971,0.90628577,57672.0,57671.0,1e-08]
[1723764105128,0.55949777,57672.0,57671.0,0.08190001]
[1723764107598,0.21270977,57672.0,57671.0,0.08190001]
[1723764107806,0.03931577,57672.0,57671.0,0.08190001]
[1723764110955,0.03931577,57672.0,57671.0,0.25529701]
[1723764111216,0.03931577,57672.0,57671.0,0.66229101]
[1723764113394,0.03931577,57672.0,57671.0,0.83384555]
[1723764113605,0.03931577,57672.0,57671.0,1.52743355]
[1723764113816,0.027,57672.0,57671.0,1.52743355]
[1723764114472,0.013,57672.0,57671.0,1.52743355]
[1723764114641,0.00090421,57675.0,57674.0,1.355216]
[1723764114842,0.00090421,57675.0,57674.0,1.61254781]
[1723764115242,0.00090421,57675.0,57674.0,1.52677054]
[1723764116207,0.00290421,57675.0,57674.0,1.52677054]
[1723764116416,0.00290421,57675.0,57674.0,1.52777054]
[1723764116626,0.00390421,57675.0,57674.0,1.55077054]
[1723764116829,0.00390421,57675.0,57674.0,1.65077054]
[1723764117344,0.00390421,57675.0,57674.0,1.660889]
[1723764118064,0.00090421,57700.0,57684.0,0.001]
[1723764118265,0.00090421,57700.0,57692.0,0.0659]
[1723764118489,0.01204879,57699.0,57695.0,0.0659]
[1723764118691,0.01204879,57699.0,57696.0,0.17155454]
[1723764118903,0.00090421,57700.0,57699.0,0.078]
[1723764119113,0.00090421,57700.0,57699.0,1.11611954]
[1723764121459,0.00090421,57700.0,57699.0,0.76949354]
[1723764121460,0.00990421,57700.0,57699.0,0.76949354]
[1723764121998,0.01790421,57700.0,57699.0,0.42386754]
[1723764122205,0.01790421,57700.0,57699.0,0.079]
[1723764122355,0.93317986,57700.0,57699.0,0.001]
[1723764122774,1.01517986,57700.0,57699.0,0.001]
[1723764123647,0.03001484,57700.0,57699.0,0.001]
[1723764124068,0.03001484,57700.0,57699.0,0.0821]
[1723764124310,0.03001484,57700.0,57699.0,0.319913]
[1723764124788,0.03001484,57700.0,57699.0,1.18471954]
[1723764125372,0.01790421,57700.0,57699.0,1.18471954]
[1723764126078,0.01790421,57700.0,57699.0,0.1466]
[1723764126595,0.24000092,57700.0,57699.0,0.001]
[1723764126839,1.0357264,57700.0,57699.0,0.001]
[1723764127082,1.3823464,57700.0,57699.0,0.001]
[1723764128778,1.3823464,57700.0,57688.0,0.1392]
[1723764128779,0.173324,57696.0,57688.0,0.1392]
[1723764129029,0.1091764,57700.0,57689.0,0.17155454]
[1723764129030,0.17332,57697.0,57689.0,0.17155454]
[1723764129270,0.173318,57698.0,57691.0,0.0772]
[1723764129503,0.173318,57698.0,57692.0,0.17155454]
[1723764129700,0.173322,57696.0,57692.0,0.17155454]
[1723764130201,0.346627,57699.0,57692.0,0.17155454]
[1723764130202,0.00788201,57695.0,57692.0,0.17155454]
[1723764130399,0.173319,57697.0,57692.0,0.17155454]
[1723764130599,0.01218065,57694.0,57693.0,0.173331]
[1723764130800,0.173319,57697.0,57693.0,0.173331]
[1723764131000,0.173319,57697.0,57694.0,0.173327]
[1723764131214,0.003,57696.0,57694.0,0.173327]
[1723764131392,0.007,57696.0,57694.0,0.173327]
[1723764131560,0.173316,57698.0,57694.0,0.173327]
[1723764131759,0.173313,57699.0,57693.0,0.346657]
[1723764131985,0.006,57697.0,57696.0,0.173321]
[1723764132187,0.006,57697.0,57695.0,0.173325]
[1723764132385,0.006,57697.0,57692.0,0.17155454]
[1723764132590,0.006,57697.0,57694.0,0.173326]
[1723764132793,0.004,57696.0,57694.0,0.174326]
[1723764132999,0.004,57696.0,57695.0,0.173325]
[1723764133642,0.01190541,57696.0,57695.0,0.173325]
[1723764134071,0.01190541,57696.0,57694.0,0.173327]
[1723764134689,0.00790541,57696.0,57694.0,0.173327]
[1723764135283,0.003,57696.0,57694.0,0.173327]
[1723764135584,0.01216763,57695.0,57694.0,0.173327]
[1723764137472,0.01416763,57695.0,57694.0,0.173327]
[1723764137925,0.01716763,57695.0,57694.0,0.173327]
[1723764140081,0.01716763,57695.0,57694.0,0.83443754]
[1723764140319,0.01716763,57695.0,57694.0,1.18109354]
[1723764140320,0.005,57695.0,57694.0,1.18109354]
[1723764140931,0.005,57695.0,57694.0,1.52774954]
[1723764141365,0.005,57695.0,57694.0,1.62774954]
[1723764142509,0.005,57695.0,57694.0,1.28109354]
[1723764142911,0.005,57695.0,57694.0,1.62774954]
[1723764143080,0.005,57695.0,57694.0,0.83443754]
[1723764143284,0.178325,57695.0,57694.0,0.0788]
[1723764143485,0.1905149,57695.0,57694.0,0.000822]
[1723764143814,0.91094639,57695.0,57694.0,0.000822]
[1723764143983,0.56429639,57695.0,57694.0,0.000822]
[1723764144201,0.5371649,57695.0,57694.0,0.000822]
[1723764144828,0.5321649,57695.0,57694.0,0.000822]
[1723764144985,0.5421649,57695.0,57694.0,0.000822]
[1723764145188,0.1955149,57695.0,57694.0,0.000822]
[1723764145386,0.1955149,57695.0,57694.0,0.17415]
[1723764145387,0.0121899,57695.0,57694.0,0.17415]
[1723764145804,0.0121899,57695.0,57694.0,0.17515]
[1723764145805,0.0311899,57695.0,57694.0,0.17515]
[1723764146167,0.0311899,57695.0,57694.0,0.001822]
[1723764147200,0.0221899,57695.0,57694.0,0.000822]
[1723764147403,0.0311899,57695.0,57694.0,0.17415]
[1723764147608,0.0211899,57695.0,57694.0,0.520806]
[1723764147779,0.0211899,57695.0,57694.0,0.000822]
[1723764148005,0.0201899,57695.0,57694.0,0.000822]
[1723764148204,0.0261899,57695.0,57694.0,0.000822]
[1723764148384,0.0261899,57695.0,57694.0,0.17415]
[1723764148579,0.1995149,57695.0,57694.0,0.000822]
[1723764148842,0.5461649,57695.0,57694.0,0.000822]
[1723764149420,1.08095839,57695.0,57694.0,0.000822]
[1723764149858,0.9570149,57695.0,57694.0,0.000822]
[1723764151207,1.3036649,57695.0,57694.0,0.000822]
[1723764151430,1.3066649,57695.0,57694.0,0.000822]
[1723764151665,1.3066649,57695.0,57684.0,0.082]
[1723764151666,0.173355,57685.0,57684.0,0.082]
[1723764151908,0.173355,57685.0,57675.0,0.51548562]
[1723764151909,0.17338,57677.0,57675.0,0.51548562]
[1723764152140,0.20557239,57685.0,57675.0,0.51548562]
[1723764152365,0.346722,57683.0,57676.0,0.173379]
[1723764152563,0.173374,57679.0,57675.0,0.000822]
[1723764152787,0.173374,57679.0,57676.0,0.173381]
[1723764152993,0.17337,57680.0,57677.0,0.173378]
[1723764153194,0.17337,57680.0,57676.0,0.17155454]
[1723764153195,0.01211891,57685.0,57676.0,0.17155454]
[1723764153402,0.346728,57683.0,57676.0,0.17155454]
[1723764153614,0.173372,57680.0,57676.0,0.17155454]
[1723764153841,0.173372,57680.0,57676.0,0.34493554]
[1723764154270,0.173372,57680.0,57677.0,0.173379]
[1723764154925,0.182372,57680.0,57677.0,0.173379]
[1723764155096,0.173367,57681.0,57677.0,0.173379]
[1723764155305,0.007,57680.0,57677.0,0.173379]
[1723764155577,0.0077715,57679.0,57677.0,0.173379]
[1723764155920,0.0077715,57679.0,57678.0,0.42343054]
[1723764156069,0.0077715,57679.0,57678.0,1.52368654]
[1723764156271,0.007,57680.0,57679.0,0.945365]
[1723764156470,0.007,57680.0,57679.0,1.11691954]
[1723764156685,0.05145348,57689.0,57680.0,0.173369]
[1723764156925,0.3467,57687.0,57679.0,0.425246]
[1723764157113,0.3467,57687.0,57680.0,0.173368]
[1723764157114,0.173361,57684.0,57680.0,0.173368]
[1723764158570,0.181361,57684.0,57680.0,0.173368]
[1723764159177,0.00783624,57683.0,57680.0,0.173368]
[1723764159377,0.18119724,57683.0,57680.0,0.173368]
[1723764159985,0.00783624,57683.0,57680.0,0.173368]
[1723764160634,0.01483624,57683.0,57681.0,0.173366]
[1723764160873,0.01462756,57683.0,57682.0,0.42251854]
[1723764161104,0.01462756,57683.0,57682.0,0.250964]
[1723764161335,0.01462756,57683.0,57677.0,0.078422]
[1723764161336,0.34673,57682.0,57677.0,0.078422]
[1723764161557,0.17337,57680.0,57677.0,0.2518]
[1723764162040,0.00777124,57679.0,57677.0,0.2518]
[1723764162844,0.00777124,57679.0,57677.0,0.59673054]
[1723764163053,0.00777124,57679.0,57678.0,0.520128]
[1723764163288,0.00777124,57679.0,57677.0,0.000822]
[1723764163289,0.173375,57679.0,57677.0,0.000822]
[1723764163581,0.18411078,57679.0,57677.0,0.000822]
[1723764163784,0.01073578,57679.0,57677.0,0.000822]
[1723764163941,0.173376,57678.0,57677.0,0.000822]
[1723764164162,0.35748378,57679.0,57677.0,0.000822]
[1723764164163,0.005,57679.0,57677.0,0.000822]
[1723764164348,0.00773578,57678.0,57677.0,0.000822]
[1723764165127,0.00994303,57678.0,57677.0,0.000822]
[1723764166340,0.01194303,57678.0,57677.0,0.000822]
[1723764166698,0.53207103,57678.0,57677.0,0.000822]
[1723764166906,0.18531903,57678.0,57677.0,0.000822]
[1723764167069,0.18631903,57678.0,57677.0,0.000822]
[1723764168409,0.01294303,57678.0,57677.0,0.000822]
[1723764170290,0.18631903,57678.0,57677.0,0.000822]
[1723764171876,0.53654655,57678.0,57677.0,0.000822]
[1723764172418,0.521146,57676.0,57675.0,0.000822]
[1723764172734,0.95177129,57676.0,57675.0,0.000822]
[1723764172967,0.00984266,57676.0,57675.0,0.064722]
[1723764173212,0.18322466,57676.0,57675.0,0.064722]
[1723764173542,0.18622466,57676.0,57675.0,0.064722]
[1723764173767,0.53298866,57676.0,57675.0,0.064722]
[1723764174187,0.52998866,57676.0,57675.0,0.064722]
[1723764174333,0.53498866,57676.0,57675.0,0.064722]
[1723764174742,0.20222466,57676.0,57675.0,0.064722]
[1723764174944,0.19722466,57676.0,57675.0,0.064722]
[1723764175144,0.18322466,57676.0,57675.0,0.064722]
[1723764175345,0.19322466,57676.0,57675.0,0.064722]
[1723764176193,0.18322466,57676.0,57675.0,0.064722]
[1723764176400,0.19022466,57676.0,57675.0,0.064722]
[1723764176757,0.19922466,57676.0,57675.0,0.064722]
[1723764177172,0.19022466,57676.0,57675.0,0.064722]
[1723764177596,0.19522466,57676.0,57675.0,0.064722]
[1723764178235,0.19022466,57676.0,57675.0,0.064722]
[1723764178367,0.19122466,57676.0,57675.0,0.064722]
[1723764178772,0.20022466,57676.0,57675.0,0.064722]
[1723764179486,0.01784266,57676.0,57675.0,0.667277]
[1723764179690,0.01784266,57676.0,57675.0,1.014047]
[1723764179865,0.007,57676.0,57675.0,1.014047]
[1723764180067,0.173362,57683.0,57679.0,0.173371]
[1723764180316,0.173364,57682.0,57679.0,0.173371]
[1723764180551,0.18331355,57682.0,57679.0,0.173371]
[1723764180737,0.00994955,57682.0,57681.0,0.173367]
[1723764181533,0.00994955,57682.0,57681.0,0.520101]
[1723764181909,0.02194955,57682.0,57681.0,0.173367]
[1723764182112,0.02194955,57682.0,57681.0,0.520101]
[1723764182313,0.03094955,57682.0,57681.0,0.173367]
[1723764182516,0.03094955,57682.0,57680.0,0.1458]
[1723764182898,0.03094955,57682.0,57681.0,0.173367]
[1723764183104,0.01894955,57682.0,57681.0,0.173367]
[1723764183506,0.01794955,57682.0,57681.0,0.173367]
[1723764183912,0.01794955,57682.0,57681.0,0.520101]
[1723764184133,0.01794955,57682.0,57681.0,0.866835]
[1723764184334,0.01017801,57682.0,57681.0,0.866835]
[1723764184682,0.008,57682.0,57681.0,0.866835]
[1723764185061,0.017,57682.0,57681.0,0.866835]
[1723764185244,0.008,57682.0,57681.0,0.173367]
[1723764185640,0.02698993,57682.0,57681.0,0.173367]
[1723764185938,0.02698993,57682.0,57681.0,0.520101]
[1723764187217,0.02698993,57682.0,57681.0,0.866835]
[1723764187963,0.02698993,57682.0,57681.0,0.520101]
[1723764188414,0.02698993,57682.0,57681.0,1.52282354]
[1723764188823,0.01919991,57682.0,57681.0,1.52282354]
[1723764189025,0.017,57682.0,57681.0,1.52282354]